Cogmind - Beta 15 @@@ ROGUE MODE // 2025.08.17 @ 13:49:28 Player: laimo Result: Destroyed by G-47 Trooper with Particle Gun Performance ------------- Evolutions (0) 0 Regions Visited (1) 200 Robots Destroyed (25) 125 Value Destroyed (434) 434 Prototype IDs (2) 40 Alien Tech Used (0) 0 Bonus (0) 0 TOTAL SCORE: 799 Bonus ------- None Cogmind --------- Core Integrity 0/250 Matter 285/300 Energy 98/100 System Corruption 5% Temperature Cool (27) Movement Treading (320) Ox2 Location -10/Materials Parts ------- > --- POWER (1) -------- (None) > --- PROPULSION (2) --- Light Treads Light Treads > --- UTILITY (2) ------ Huge Storage Unit Structural Scanner > --- WEAPON (2) ------- Small Laser > --- INVENTORY (25) --- Ion Engine Ion Engine Ion Engine Light Ion Engine Wheel Small Storage Unit Large Battery (200) Medium Matter Pod (100) Large Matter Pod (150) Improved Terrain Scanner Targeting Computer Weapon Shielding Small Laser Beam Cannon Peak State ------------ > --- POWER ------------ Ion Engine > --- PROPULSION ------- Wheel Compact Wheel > --- UTILITY ---------- Huge Storage Unit Weapon Shielding > --- WEAPON ----------- Light Assault Rifle Grenade Launcher > --- INVENTORY -------- Ion Engine Ion Engine Light Treads Light Treads Light Treads Wheel Compact Wheel Small Storage Unit Targeting Computer EM Pulse Gun [Rating: 8] Favorites ----------- Power Ion Engine Engine Ion Engine Propulsion Compact Wheel Treads Light Treads Wheel Compact Wheel Utility Huge Storage Unit Device Structural Scanner Storage Huge Storage Unit Protection Weapon Shielding Weapon Light Assault Rifle Energy Gun Small Laser Ballistic Gun Light Assault Rifle Launcher Grenade Launcher Build | -11 -10 ------- Run | Yrd Mat Slots Evolved . | . . Power . | . . Propulsion . | . . Utility . | . . Weapon . | . . Parts Attached 20 | 10 10 Power 2 | 2 . Engine 2 | 2 . Core . | . . Reactor . | . . Propulsion 8 | 4 4 Treads 3 | 2 1 Leg . | . . Wheel 5 | 2 3 Hover . | . . Flight . | . . Utility 4 | 1 3 Device 1 | . 1 Storage 2 | 1 1 Processor . | . . Hackware . | . . Protection 1 | . 1 Artifact . | . . Weapon 6 | 3 3 Energy Gun 4 | 2 2 Energy Cannon . | . . Ballistic Gun 1 | 1 . Ballistic Cannon . | . . Launcher 1 | . 1 Special Weapon . | . . Impact Weapon . | . . Slashing Weapon . | . . Piercing Weapon . | . . Special Melee Weapon . | . . Unidentified Prototypes . | . . Parts Lost 10 | . 10 Power 1 | . 1 Propulsion 5 | . 5 Utility . | . . Weapon 4 | . 4 Highest Loss Streak 3 | . 3 To Critical Strikes . | . . Average Backups 9 | 2 11 Power 1 | . 2 Propulsion 3 | 1 3 Utility 3 | . 4 Weapon 1 | . 1 Tool/Special . | . . Unused Backups 17 | . 17 Power 4 | . 4 Propulsion 4 | . 4 Utility 5 | . 5 Weapon 4 | . 4 Tool/Special . | . . Average Slot Usage (%) 95 | . 95 Engine 13 | . 13 Wheel 26 | . 26 Device 5 | . 5 Storage 14 | . 14 Protection 7 | . 7 Energy Gun 12 | . 12 Ballistic Gun 9 | . 9 Launcher 5 | . 5 Peak Build Rating 8 | 6 8 Average Rating 7 | 4 7 On Entrance 2 | . 5 Naked Turns . | . . Heaviest Build 90 | 14 90 Greatest Support 40 | 40 40 Greatest Overweight (x) 5 | 4 5 Average Overweight (x) 2 | . 2 Largest Inventory Capacity 25 | 8 25 Average Capacity 20 | 7 23 Most Carried 16 | 5 16 Average Carried 10 | 2 11 Final Capacity 25 | 8 25 Final Carried 14 | 5 14 Class Distribution -------------------- 100% | Mutant Dominant Class ---------------- Mutant | -10/Materials Resources | -11 -10 ----------- Run | Yrd Mat Matter Collected 796 | 310 486 Remotely . | . . Salvage Created 694 | 113 581 Parts 46 | 6 40 Haulers Intercepted . | . . Recyclers Shooed . | . . Parts Field Recycled . | . . Retrieved Matter . | . . Parts Self-Destructed . | . . Prevented . | . . Kills | -11 -10 ------- Run | Yrd Mat Combat Hostiles Destroyed 10 | . 10 Guns 5 | . 5 AOE 5 | . 5 Classes Destroyed 6 | 2 4 Worker 8 | 2 6 Builder 1 | . 1 Tunneler 2 | . 2 Recycler 2 | 1 1 Watcher 2 | . 2 Grunt 10 | . 10 Best Kill Streak 5 | 2 5 Combat Bots Only 2 | . 2 Max Kills in Single Turn 2 | 2 2 Gunslinging . | . . Exploded 2 | . 2 Melee . | . . Uniques/NPCs Destroyed . | . . Combat | -11 -10 -------- Run | Yrd Mat Hostile Shots Fired 77 | . 77 Missed 18 | . 18 Hits 59 | . 59 Projectile 59 | . 59 Critical Strikes 1 | . 1 Damage Taken 912 | 56 856 Core 250 | . 250 Absorbed by Shields . | . . Redirected to Shielding 45 | . 45 Core Remaining (%) 100 | 100 . Volleys Fired 58 | 3 55 Largest 2 | 2 2 Hottest 80 | 80 80 Shots Fired 93 | 6 87 Gun 74 | 6 68 Cannon . | . . Launcher 19 | . 19 Special . | . . Kinetic 44 | . 44 Thermal 12 | . 12 Explosive 19 | . 19 Electromagnetic 18 | 6 12 Robot Hit Streak 8 | 5 8 Robot Miss Streak 3 | 1 3 Penetration Max . | . . Secondary Targets . | . . Shots Hit Robots 64 | 5 59 Core Hits 45 | 3 42 Critical Kills . | . . Critical Parts Destroyed . | . . Critical Strikes 1 | . 1 Corrupt 1 | . 1 Melee Attacks . | . . Impact . | . . Slashing . | . . Piercing . | . . Sneak Attacks . | . . Combat Hostiles . | . . Follow-up Attacks . | . . Damage Inflicted 1440 | 145 1295 Guns 501 | 53 448 Cannons . | . . Explosions 910 | 88 822 Melee . | . . Ramming 29 | 4 25 Kinetic 220 | . 220 Thermal 222 | 88 134 Explosive 774 | . 774 Electromagnetic 195 | 53 142 Impact . | . . Slashing . | . . Piercing . | . . Highest Corruption 5 | . 5 Average Corruption 1 | . 1 Corruption Purged . | . . Corruption Blocked . | . . Effects 1 | . 1 Misfires 1 | . 1 Overload Shots . | . . Overflow Damage 19 | . 19 Projectiles . | . . Explosions 19 | . 19 Melee . | . . Knockbacks . | . . Impact . | . . Kinetic . | . . Secondary . | . . Self-Inflicted Damage 222 | 57 165 Shots 9 | 2 7 Rammed 3 | 1 2 Targets Rammed 3 | 1 2 Kicked . | . . Crushed . | . . Highest Temperature 94 | 30 94 Average Temperature 21 | 13 21 Received Heat Transfer 402 | . 402 Siege Activations . | . . Martial Activations . | . . Shielding Activations . | . . Robots Disrupted . | . . Combat Hostiles . | . . Robots Corrupted 1 | . 1 Combat Hostiles . | . . Parts Fried 3 | . 3 Impact Corruptions . | . . Robots Melted . | . . Combat Hostiles . | . . Parts Melted . | . . Heat Transferred 300 | 50 250 Parts Sabotaged . | . . Parts Stolen . | . . Parts Stripped . | . . Power Chain Reactions 3 | 2 1 Alert | -11 -10 ------- Run | Yrd Mat Maximum Alert Level . | . . Low Security (%) 100 | 100 100 Level 1 . | . . Level 2 . | . . Level 3 . | . . Level 4 . | . . Level 5 . | . . High Security . | . . Max Security . | . . Peak Influence 168 | 10 168 Initial . | . . Average 72 | . 86 Influence Increases 544 | 15 529 Destroy 0b10 Robot/C 200 | . 200 Destroy 0b10 Robot/NC 75 | 15 60 Destroy Leader 54 | . 54 Successful Hack 8 | . 8 Disable Machine 15 | . 15 Destroy Structure 102 | . 102 Lose Combat Pursuer 90 | . 90 Influence Decreases 473 | 15 458 Time Decay 373 | 15 358 Lost Part 100 | . 100 Squads Dispatched 5 | . 5 Investigation 4 | . 4 Extermination . | . . Reinforcement 1 | . 1 Assault . | . . Garrison . | . . Intercept . | . . Searches Triggered . | . . Construction Impeded . | . . Haulers Reinforced . | . . Active Scanning Responses . | . . Cargo Convoy Interrupts . | . . Stealth | -11 -10 --------- Run | Yrd Mat Distress Signals 2 | . 2 Communications Jammed . | . . Distress Signals . | . . Times Spotted 21 | . 21 Peak Tracking Total 5 | . 5 Tactical Retreats 3 | . 3 Traps | -11 -10 ------- Run | Yrd Mat Traps Triggered 4 | . 4 Indirectly . | . . Trap Hack Attempts . | . . Triggered . | . . Disarmed . | . . Reprogrammed . | . . Reused . | . . Traps Extracted . | . . Installed . | . . Triggered . | . . Machines | -11 -10 ---------- Run | Yrd Mat Machines Disabled 1 | . 1 Max in Single Turn 1 | . 1 Machines Repaired . | . . Machines Dismantled . | . . Machines Sabotaged . | . . Overloaded Fab Kills . | . . Hacking | -11 -10 --------- Run | Yrd Mat Machines Accessed 3 | . 3 Terminals 2 | . 2 Fabricators . | . . Repair Stations . | . . Recycling Units 1 | . 1 Scanalyzers . | . . Garrison Access . | . . Total Hacks 14 | . 14 Successful 9 | . 9 Failed 5 | . 5 Catastrophic . | . . Database Lockouts . | . . Manual 6 | . 6 Terminals 10 | . 10 Fabricators . | . . Repair Stations . | . . Recycling Units 4 | . 4 Scanalyzers . | . . Garrison Access . | . . Terminal Hacks 6 | . 6 Record 5 | . 5 Prototype ID Bank 1 | . 1 Fabricator Hacks . | . . Repair Station Hacks . | . . Recycling Unit Hacks 3 | . 3 Process 1 | . 1 Report Inventory 1 | . 1 Retrieve Matter 1 | . 1 Scanalyzer . | . . Garrison Access Hacks . | . . Unauthorized Hacks . | . . Terminals . | . . Fabricators . | . . Repair Stations . | . . Recycling Units . | . . Scanalyzers . | . . Garrison Access . | . . Data Cores Recovered . | . . Used . | . . Hacking Detections 2 | . 2 Full Trace Events 2 | . 2 Feedback Events . | . . Feedback Blocked . | . . Robot Schematics Acquired . | . . Robots Built . | . . Authchips . | . . Time . | . . Total Robot Build Rating . | . . Part Schematics Acquired . | . . Parts Built . | . . Authchips . | . . Time . | . . Total Part Build Rating . | . . Parts Repaired . | . . Time . | . . Parts Recycled . | . . Recycled Matter 5 | . 5 Retrieved Matter 5 | . 5 Retrieved Components . | . . Parts Scanalyzed . | . . Part Schematics Acquired . | . . Parts Damaged . | . . Bothacking | -11 -10 ------------ Run | Yrd Mat Used RIF Installer . | . . Robots Hacked . | . . Non-combat . | . . Combat . | . . Robot Hacks Applied . | . . Relay Couplers Released . | . . Fabnet Peak Effective % . | . . Robots Rewired . | . . Allies Hacked . | . . Hacks Repelled . | . . Allies | -11 -10 -------- Run | Yrd Mat Total Allies . | . . Largest Group . | . . Highest-Rated Group . | . . Highest-Rated Ally . | . . Total Orders . | . . Ally Attacks . | . . Total Damage . | . . Kills . | . . Allies Corrupted . | . . Allies Melted . | . . Intel | -11 -10 ------- Run | Yrd Mat Active Infowar (turns) 260 | . 260 Structural 260 | . 260 Robot Analysis Total . | . . Derelict Logs Recovered . | . . Drone Launches . | . . Drone Recoveries . | . . Exploration | -11 -10 ------------- Run | Yrd Mat Turns Passed 1014 | 164 850 Spaces Moved 626 | 128 498 Core 9 | 9 . Treads 24 | 21 3 Legs . | . . Wheels 593 | 98 495 Hover . | . . Flight . | . . Fastest Speed 50 | 50 90 Average Speed 124 | 101 130 Slowest Speed 320 | 250 320 Overloaded Moves . | . . Propulsion Burnouts . | . . Robots Hopped . | . . Potential Cave-ins . | . . Cave-ins Triggered . | . . Exploration Rate (%) 37 | 5 70 Regions Visited 1 Branch Regions . Pre-discovered Areas . | . . Known Exits Taken . | . . Unknown Exits Taken 1 | 1 . Scrap Searched . | . . Spaces Dug . | . . Terrain Destroyed 103 | 2 101 Melee . | . . Projectile . | . . AOE 103 | 2 101 Terrain Rammed . | . . Walls Destroyed . | . . Machines Disabled . | . . Actions | -11 -10 --------- Run | Yrd Mat Total 775 | 154 621 Wait 19 | . 19 Move 625 | 127 498 Hop . | . . Pick Up 28 | 4 24 Fast Attach 11 | 9 2 Attach 9 | 1 8 Detach 5 | 5 . Swap 7 | 1 6 Drop 10 | 3 7 Fire 58 | 3 55 Melee . | . . Ram 3 | 1 2 Kick . | . . Crush . | . . Escape Stasis . | . . Rewire . | . . Trap . | . . Miscellaneous . | . . Route ------- -11/Scrapyard -10/Materials (discovered 1 exit: [*Min]) History --------- Turn | Location | Event 13 | -11/Scrapyard | Discovered new exit (range 15) 165 | -11/Scrapyard | Entered Materials 309 | -10/Materials | Build established: Mutant 468 | -10/Materials | Discovered new exit (range 13) 660 | -10/Materials | Core integrity fell below 50% 778 | -10/Materials | Lost 3 parts (1n2w) 1009 | -10/Materials | Core integrity fell below 20% 1015 | -10/Materials | Destroyed by G-47 Trooper with Particle Gun Last Messages --------------- investigation squad. 00926_ G-34 Mercenary destroyed. 00931_ Acquired Sml. Laser. 00942_ Connecting with Terminal... >>Prototypes Downloading prototype IDs... Adv. Beam Cannon Imp. Flight Unit 00942_ ALERT: Suspicious activity at Terminal M001. Dispatching Investigation squad. 00955_ Slammed into K-01 Serf. 00955_ K-01 Serf destroyed. 00955_ Ion Engine destroyed. 00955_ System corrupted by crushing effect (+4). 00955_ Structural Scanner broken. 00955_ Destabilizing: Short circuit. 00998_ Wheel destroyed. 01005_ Com. Wheel destroyed. 01012_ Sml. Laser destroyed. 01015_ Critical hit (Burn: +37). Map ----- +----------------------------------------------------+ | T ""#####+#########+# ## ##????? | | " Y"## ## ####### | | ""## ############+####### | | #### ######## # """" ## | | # # # """" ## | | ! # # # """" ## | | % %* / / + ## | | #T######### # # ## | | ######## ## # # ## | | # ######???## # # ######### | | #+########??########## # % # | | # #????####### # """ # | | # #?????????## # """ # | | # #?????????## + """ # | | # ??????????## # # | | # ???????????## # """ # | | # ????????????## # """ # | | # ??????????????## # """ # | | # ???????????????## # # | | # ###??##########??## # # | | #### #??## # # | | + #??## ######### | | = ### #??## ######### | | ##?# #??## #####???? | | # #?# #??## ######??? | | # #?# #??## @ !###??? | | # #?# #??## !##??? | | ## #?# #??## !##??? | | ?# #### ##### g !##??? | | ?# ########+######## g !##??? | | ?# !###??? | | ?# = ######??? | | ?# % #####???? | | ?# ^ ####+######### ##??????? | | ?# ^ # ####### ##??????? | | ## + #????## ##??????? | | #### """ #????## ##??????? | | ## #??# """ #????## ##??????? | | ###+##### """ #????## ##??????? | | # #????## ##??????? | | ########????## ##??????? | | #???????????## ######### | | #???????????## ######### | | #???????????## # # | | ##+############?????## # # | | ??## # # | | ??## # # | | ## # # | | ####### ############## + # | | #???### ####### # # | +----------------------------------------------------+ Best States ------------- Heat Dissipation 25 Energy Generation 10 Energy Capacity 250 Matter Stores 300 Matter Capacity 300 Sight Range 16 Terrain Scan Density 10 Weapon Shielding 33 Evasion (%) 42 Recoil Reduction 2 Item Schematics ----------------- None Robot Schematics ------------------ None Fabricated ------------ Nothing Repaired ---------- Nothing Alien Tech Used ----------------- None Achievements -------------- None Challenges ------------ None Game ------ Seed EtherialThunderSword Manual? 0 Play Time 00:19:07 Cumulative 5.5 hours Start 2025.08.17 @ 13:27:40 End 2025.08.17 @ 13:49:28 Sessions 1 Manual Loads 0 Difficulty Rogue Special Mode None Game No. 5 Rogue 4 Adventurer 1 Explorer 0 Win Type - Total 0 Types 0/0/0/0/0/0/0/0/0/0 Lore% 1 Gallery% 6 Achievement% 8 Wizard Run 0 Options --------- Layout 1 ASCII 0 Keyboard 1 Movement Numpad Keybinds 0 Fullscreen 1 Font 32/SmallcapsGlow Map View 50x35 Zoom Use 0% Tactical HUD 1 Map Filters NONE Filters NONE Steam 1 RUN: 3b0da41a-bcb4-46c8-a1e6-dbf215d5c9be